Workbook

Sheet Теория
A1: п.1. Тепловые потери через изолированную поверхность подающих и обратных трубопроводов
A2: тепловых сетей при надземной прокладке, при известной толщине изоляции , м, следует определять
A3: по формуле (В.17), а термические сопротивления, входящие в эту формулу, - по (В.6). В качестве температур
A4: внутренней и наружной сред и принимают расчетные температуры теплоносителя и окружающего воздуха,
A5: а коэффициент теплоотдачи - по таблице В.2.
A6: п.2. При определении толщины изоляции трубопроводов тепловых сетей по нормированным значениям
A7: плотности тепловых потоков от подающих и обратных теплопроводов используется методика расчетов,
A8: изложенная в разделе В.2.1. При этом расчетные температуры теплоносителя в подающем и обратном
A9: трубопроводе принимают по таблице В.5.
A10: п.3. Расчетную температуру наружной среды принимают: при круглогодичной работе тепловой
A11: сети - среднегодовую температуру наружного воздуха, при работе только в отопительный период -
A12: среднюю температуру отопительного периода. Расчетный коэффициент теплоотдачи - по таблице В.2.
A14: а) Линейная плотность теплового потока через цилиндрические поверхности
A15: для трубопроводов диаметром менее 2 м
B18: , (В.17)
F19: (В.17)
A22: где - коэффициент дополнительных потерь, учитывающий теплопотери через теплопроводные
A23: включения в теплоизоляционных конструкциях, обусловленных наличием в них крепежных деталей и опор (таблица В.1).
A24: - температура среды внутри изолируемого объекта, °С;
A26: - температура окружающей среды, °С;
B28: - полное линейное термическое сопротивление -слойной цилиндрической изоляции; м·°С/Вт
B30: - линейное термическое сопротивление теплоотдаче наружной изоляции, м·°С/Вт;
B32: - линейная плотность теплового потока через цилиндрическую теплоизоляционную конструкцию, Вт/м;
A35: Термическое сопротивление слоев тепловой изоляции и сопротивление внешней теплоотдаче в (В.17)
A36: определяется по формулам (В.6), в которых теплопроводность изоляции принимается по приложению Б,
A37: а коэффициент теплоотдачи на поверхности изоляции - по таблице В.2.
H40: (В.6)
B43: - коэффициенты теплопроводности материала стенки изолируемого объекта
B44: однослойной изоляции, Вт/(м·°С);
B46: - наружный диаметр изоляции, м
B48: наружный диаметр стенки изолируемого объекта, м
B50: коэффициент теплоотдачи наружной поверхности изоляции, Вт/(м ·°С);
A52: б) Расчет толщины тепловой изоляции по нормированной плотности теплового потока
A53: для однослойных конструкций выполняется по следующим формулам.
A54: Для однослойных цилиндрических поверхностей диаметром менее 2 м используется формула
H57: (В.19)
A60: Коэффициент дополнительных тепловых потерь через опоры трубопроводов в расчете толщины
A61: тепловой изоляции по нормативной плотности теплового потока принимается равным 1.
A62: Приближенные значения принимаются по таблице В.3
H65: (В.20)

Sheet Расчет а
B2: - температура среды внутри изолируемого объекта, °С; (см. В.5) | K2: 90
B4: - температура окружающей среды, °С; (см. п.3) | K4: -40
B6: коэффициент дополнительных потерь (см. В.1) | K6: 1.15
B8: - коэффициенты теплопроводности материала стенки изолируемого объекта
B9: однослойной изоляции, Вт/(м·°С); (см. пролож. Б) | K9: 0.041
B11: наружный диаметр стенки изолируемого объекта, м | K11: 0.159
B13: толщины изоляции, м | K13: 0.1
B15: коэффициент теплоотдачи наружной поверхности изоляции, Вт/(м ·°С); | K15: 20
B16: (см. В.2)
F23: ='(а)'!P8 -> 3.163034745
F28: ='(а)'!P14 -> 0.0443553395
F32: ='(а)'!Q22 -> 46.61110624 | H32: Вт/м;
A36: Температура на наружном слое теплоизоляции
A37: расчитывается по данной формуле:
F43: ='(а)'!O35 -> -38.20221614 | H43: 0С
A46: Расчет по книге Ястребова | F46: ='(а)'!Q42 -> -37.93254856 | H46: 0С

Sheet Расчет б
B2: - температура среды внутри изолируемого объекта, °С; (см. В.5) | K2: 90
B4: - температура окружающей среды, °С; (см. п.3) | K4: -40
B6: коэффициент дополнительных потерь (см. теорию) | K6: 1
B8: - коэффициенты теплопроводности материала стенки изолируемого объекта
B9: однослойной изоляции, Вт/(м·°С); (см. пролож. Б) | K9: 0.041
B11: наружный диаметр стенки изолируемого объекта, м | K11: 0.159
B14: нормированной плотности теплового потока Вт/м; (см. таб.2-5) | K14: 42
B17: - линейное термическое сопротивление теплоотдаче наружной изоляции, м·°С/Вт;
B18: (см. В.3) | K18: 0.18
G23: ='(б)'!R6 -> 0.7506155048
G26: ='(б)'!P10 -> 2.119308389
G29: ='(б)'!Q16 -> 0.08898501694 | I29: м

Sheet (а)
B2: - температура среды внутри изолируемого объекта, °С; (см. В.5) | K2: ='Расчет а'!K2 -> 90
B4: - температура окружающей среды, °С; (см. п.3) | K4: ='Расчет а'!K4 -> -40
N5: =1/(2*3.14*K9) -> 3.8837968 | O5: =K11+(2*K13) -> 0.359 | P5: =O5/K11 -> 2.257861635 | Q5: =LN(P5) -> 0.8144181863
B6: коэффициент дополнительных потерь (см. В.1) | K6: ='Расчет а'!K6 -> 1.15
B8: - коэффициенты теплопроводности материала стенки изолируемого объекта | P8: =N5*Q5 -> 3.163034745
B9: однослойной изоляции, Вт/(м·°С); (см. пролож. Б) | K9: ='Расчет а'!K9 -> 0.041
B11: наружный диаметр стенки изолируемого объекта, м | K11: ='Расчет а'!K11 -> 0.159
B13: толщины изоляции, м | K13: ='Расчет а'!K13 -> 0.1 | N13: =3.14*(K11+2*K13)*K15 -> 22.5452
P14: =1/N13 -> 0.0443553395
B15: коэффициент теплоотдачи наружной поверхности изоляции, Вт/(м ·°С); | K15: ='Расчет а'!K15 -> 20
B16: (см. В.2)
N22: =P8+P14 -> 3.207390085 | O22: =(K2-K4)*K6 -> 149.5 | Q22: =O22/N22 -> 46.61110624
M32: =(K11+2*K13)/K11 -> 2.257861635 | N32: =LN(M32) -> 0.8144181863 | O32: =K15*(K11+2*K13) -> 7.18 | P32: =(N32*O32)/(2*K9) -> 71.31125094
O35: =(K2+P32*K4)/(P32+1) -> -38.20221614
N37: Расчет по формуле из книги Ястребова
N42: =3.14*K15* (K11+2*K13) -> 22.5452 | O42: =Q22/N42 -> 2.067451441 | Q42: =K4+O42 -> -37.93254856

Sheet (б)
B2: - температура среды внутри изолируемого объекта, °С; (см. В.5) | K2: ='Расчет б'!K2 -> 90
B4: - температура окружающей среды, °С; (см. п.3) | K4: ='Расчет б'!K4 -> -40
B6: коэффициент дополнительных потерь (см. теорию) | K6: ='Расчет б'!K6 -> 1 | N6: =2*3.14*K9 -> 0.25748 | O6: =(K6*(K2-K4))/K14 -> 3.095238095 | P6: =O6-K18 -> 2.915238095 | R6: =N6*P6 -> 0.7506155048
B8: - коэффициенты теплопроводности материала стенки изолируемого объекта
B9: однослойной изоляции, Вт/(м·°С); (см. пролож. Б) | K9: ='Расчет б'!K9 -> 0.041
P10: =2.72^R6 -> 2.119308389
B11: наружный диаметр стенки изолируемого объекта, м | K11: ='Расчет б'!K11 -> 0.159
B14: нормированной плотности теплового потока Вт/м; (см. таб.2-5) | K14: ='Расчет б'!K14 -> 42
N16: =P10-1 -> 1.119308389 | Q16: =(K11*N16)/2 -> 0.08898501694
B17: - линейное термическое сопротивление теплоотдаче наружной изоляции, м·°С/Вт;
B18: (см. В.3) | K18: ='Расчет б'!K18 -> 0.18

Sheet В.1
A1: Таблица В.1- Значения коэффициента дополнительных потерь для трубопроводов
B3: Тип изолируемого объекта | C3: Коэффициент
B7: Трубопроводы на открытом воздухе, в непроходных каналах, тоннелях и помещениях:
B10: а) стальные на подвижных опорах, условным проходом, мм:
B13: до 150 | C13: 1.2
B16: 150 и более | C16: 1.15
B19: б) стальные на подвесных опорах | C19: 1.05
B22: в) неметаллические на подвижных и подвесных опорах | C22: 1.7
B25: Трубопроводы бесканальной прокладки | C25: 1.15

Sheet В.2
A1: Таблица В.2 - Значения коэффициента теплоотдачи , Вт/(м ·°С)
B3: Изолированный объект | C3: В закрытом помещении | E3: На открытом воздухе при скорости ветра
E4: , м/с
C6: Покрытия с низким коэффициентом излучения | D6: Покрытия с высоким коэффициентом излучения
E10: 5 | F10: 10 | G10: 15
B13: Горизонтальные трубопроводы | C13: 7 | D13: 10 | E13: 20 | F13: 26 | G13: 35
B16: Вертикальные трубопроводы, оборудование, плоская стенка | C16: 8 | D16: 12 | E16: 26 | F16: 35 | G16: 52
B19: К ним относятся покрытия из оцинкованной стали, листов алюминиевых сплавов и алюминия с оксидной пленкой.
B21: К ним относятся штукатурки, асбестоцементные покрытия, стеклопластики, различные окраски (кроме краски с алюминиевой пудрой).
B23: При отсутствии сведений о скорости ветра принимают значения, соответствующие скорости 10 м/с.

Sheet В.3
A1: Таблица В.3 - Ориентировочные значения , м·°С/Вт
A4: Условный диаметр трубы, мм | B4: Внутри помещений | H4: На открытом воздухе
B6: Для поверхностей с малым коэффициентом излучения | E6: Для поверхностей с высоким коэффициентом излучения
B9: при температуре теплоносителя, °С
B12: 100 | C12: 300 | D12: 500 | E12: 100 | F12: 300 | G12: 500 | H12: 100 | I12: 300 | J12: 500
A15: 32 | B15: 0.5 | C15: 0.35 | D15: 0.3 | E15: 0.33 | F15: 0.22 | G15: 0.17 | H15: 0.12 | I15: 0.09 | J15: 0.07
A18: 40 | B18: 0.45 | C18: 0.3 | D18: 0.25 | E18: 0.29 | F18: 0.2 | G18: 0.15 | H18: 0.1 | I18: 0.07 | J18: 0.05
A21: 50 | B21: 0.4 | C21: 0.25 | D21: 0.2 | E21: 0.25 | F21: 0.17 | G21: 0.13 | H21: 0.09 | I21: 0.06 | J21: 0.04
A24: 100 | B24: 0.25 | C24: 0.19 | D24: 0.15 | E24: 0.15 | F24: 0.11 | G24: 0.1 | H24: 0.07 | I24: 0.05 | J24: 0.04
A27: 125 | B27: 0.21 | C27: 0.17 | D27: 0.13 | E27: 0.13 | F27: 0.1 | G27: 0.09 | H27: 0.05 | I27: 0.04 | J27: 0.03
A30: 150 | B30: 0.18 | C30: 0.15 | D30: 0.11 | E30: 0.12 | F30: 0.09 | G30: 0.08 | H30: 0.05 | I30: 0.04 | J30: 0.03
A33: 200 | B33: 0.16 | C33: 0.13 | D33: 0.1 | E33: 0.1 | F33: 0.08 | G33: 0.07 | H33: 0.04 | I33: 0.03 | J33: 0.03
A36: 250 | B36: 0.13 | C36: 0.1 | D36: 0.09 | E36: 0.09 | F36: 0.07 | G36: 0.06 | H36: 0.03 | I36: 0.03 | J36: 0.02
A39: 300 | B39: 0.11 | C39: 0.09 | D39: 0.08 | E39: 0.08 | F39: 0.07 | G39: 0.06 | H39: 0.03 | I39: 0.02 | J39: 0.02
A42: 350 | B42: 0.1 | C42: 0.08 | D42: 0.07 | E42: 0.07 | F42: 0.06 | G42: 0.05 | H42: 0.03 | I42: 0.02 | J42: 0.02
A45: 400 | B45: 0.09 | C45: 0.07 | D45: 0.06 | E45: 0.06 | F45: 0.05 | G45: 0.04 | H45: 0.02 | I45: 0.02 | J45: 0.02
A48: 500 | B48: 0.075 | C48: 0.065 | D48: 0.06 | E48: 0.05 | F48: 0.045 | G48: 0.04 | H48: 0.02 | I48: 0.02 | J48: 0.016
A51: 600 | B51: 0.062 | C51: 0.055 | D51: 0.05 | E51: 0.043 | F51: 0.038 | G51: 0.035 | H51: 0.017 | I51: 0.015 | J51: 0.014
A54: 700 | B54: 0.055 | C54: 0.051 | D54: 0.045 | E54: 0.038 | F54: 0.035 | G54: 0.032 | H54: 0.015 | I54: 0.013 | J54: 0.012
A57: 800 | B57: 0.048 | C57: 0.045 | D57: 0.042 | E57: 0.034 | F57: 0.031 | G57: 0.029 | H57: 0.013 | I57: 0.012 | J57: 0.011
A60: 900 | B60: 0.044 | C60: 0.041 | D60: 0.038 | E60: 0.031 | F60: 0.028 | G60: 0.026 | H60: 0.012 | I60: 0.011 | J60: 0.01
A63: 1000 | B63: 0.04 | C63: 0.037 | D63: 0.034 | E63: 0.028 | F63: 0.026 | G63: 0.024 | H63: 0.011 | I63: 0.01 | J63: 0.009
A66: 2000 | B66: 0.022 | C66: 0.02 | D66: 0.017 | E66: 0.015 | F66: 0.014 | G66: 0.013 | H66: 0.006 | I66: 0.006 | J66: 0.005
A69: Примечания
A71: 1 Для промежуточных значений диаметров и температуры величина
A72: определяется интерполяцией.
A74: 2 Для температуры теплоносителя ниже 100 °С принимаются данные, соответствующие 100 °С.

Sheet В.5
A1: Таблица В.5 - Среднегодовые температуры теплоносителя в водяных тепловых сетях, °С
A3: Трубопровод | B3: Расчетные температурные режимы, °С
B6: 95-70 | C6: 150-70 | D6: 180-70
A9: Подающий | B9: 65 | C9: 90 | D9: 110
A12: Обратный | B12: 50 | C12: 50 | D12: 50

Sheet Прилож.Б
A1: Расчетные технические характеристики теплоизоляционных материалов и изделий
A2: Таблица Б.1
B4: Материал, изделие | C4: Средняя плотность в конструкции, кг/м | D4: Теплопроводность теплоизоляционного материала в конструкции | F4: Температура применений, °С | G4: Группа горючести
D5: , Вт/(м·°С) для поверхностей с температурой, °С
D8: 20 и выше | E8: 19 и ниже
B11: Маты минераловатные прошивные | C11: 90 | D11: 0,041+0,00022 | E11: 0,041-0,032 | F11: От минус 180 до 450 для матов, на ткани, сетке, холсте из стекловолокна; до 700 - на металлической сетке | G11: Негорючие
C14: 100 | D14: 0,045+0,00021 | E14: 0,044-0,035
C18: 125 | D18: 0,049+0,0002 | E18: 0,048-0,037
B22: Плиты теплоизоляционные из минеральной ваты на синтетическом связующем | C22: 65 | D22: 0,04+0,00029 | E22: 0,039-0,03 | F22: От минус 60 до 400 | G22: То же
C25: 95 | D25: 0,043+0,00022 | E25: 0,042-0,031
C29: 120 | D29: 0,044+0,00021 | E29: 0,043-0,032 | F29: От минус 180 до 400 | G29: "
C32: 180 | D32: 0,052+0,0002 | E32: 0,051-0,038
B36: Полуцилиндры и цилиндры минераловатные | C36: 50 | D36: 0,04+0,00003 | E36: 0,039-0,029 | F36: От минус 180 до 400 | G36: "
C40: 80 | D40: 0,044+0,00022 | E40: 0,043-0,032
C44: 100 | D44: 0,049+0,00021 | E44: 0,048-0,036
C48: 150 | D48: 0,05+0,0002 | E48: 0,049-0,035
C52: 200 | D52: 0,053+0,00019 | E52: 0,052-0,038
B56: Маты и вата из супертонкого базальтового волокна без связующего | C56: 80 | D56: 0,032+0,00019 | E56: 0,031-0,24 | F56: От минус 180 до 600 | G56: "
B59: Шнур теплоизоляционный из минеральной ваты | C59: 200 | D59: 0,056+0,00019 | E59: 0,055-0,04 | F59: От минус 180 до 600 | G59: НГ-Г1
B63: Шнур асбестовый | C63: 100-160 | D63: 0,093+0,00019 | E63: - | F63: От 20 до 220 | G63: Г1
B67: Маты из стеклянного штапельного волокна на синтетическом связующем | C67: 50 | D67: 0,04+0,0003 | E67: 0,039-0,029 | F67: От минус 60 до 180 | G67: Негорючие
C71: 70 | D71: 0,042+0,00028 | E71: 0,041-0,03
B75: Маты прошивные из стеклянного штапельного волокна на синтетическом связующем | C75: 50 | D75: 0,04+0,0002 | E75: 0,037-0,03 | F75: От минус 60 до 300 | G75: Негорючие
B78: Маты и вата из супертонкого стеклянного волокна без связующего | C78: 70 | D78: 0,033+0,00014 | E78: 0,032-0,024 | F78: От минус 180 до 400 | G78: То же
B82: Теплоизоляционные изделия из пеностекла | C82: 130 | D82: 0,05+0,0002 | E82: 0,05-0,038 | F82: От минус 150 до 350 | G82: "
B86: Армопенобетон | C86: 200-300 | D86: 0,055+0,0002 | E86: 0.055 | F86: От минус 60 до 300 | G86: "
B90: Песок перлитовый, вспученный, мелкий | C90: 110 | D90: 0,052+0,00012 | E90: 0,051-0,038 | F90: От минус 180 до 875 | G90: "
C94: 150 | D94: 0,055+0,00012 | E94: 0,054-0,04
C98: 225 | D98: 0,058+0,00012 | E98: 0,057-0,042
B102: Теплоизоляционные изделия из пенополистирола | C102: 30 | D102: 0,033+0,00018 | E102: 0,032-0,024 | F102: От минус 180 до 70 | G102: Г3-Г4
C105: 50 | D105: 0,036+0,00018 | E105: 0,035-0,026
C109: 100 | D109: 0,041+0,00018 | E109: 0,04-0,03
B113: Теплоизоляционные изделия из пенополиуретана | C113: 40 | D113: 0,030+0,00015 | E113: 0,029-0,024 | F113: От минус 180 до 130 | G113: Г2-Г4
C117: 50 | D117: 0,032+0,00015 | E117: 0,031-0,025
C121: 70 | D121: 0,037+0,00015 | E121: 0,036-0,027
B125: Пенополимерминерал | C125: 200-250 | D125: 0,047+0,0002 | E125: 0.047 | F125: От минус 60 до 150 | G125: Г1
B129: Теплоизоляционные изделия из вспененного каучука | C129: 60-80 | D129: 0,034+0,0002 | E129: 0.033 | F129: От минус 60 до 125 | G129: Г1-Г3
B133: Теплоизоляционные изделия из пенополиэтилена | C133: 50 | D133: 0,035+0,00018 | E133: 0.033 | F133: От минус 70 до 70 | G133: Г3-Г4
B137: Примечания
B139: 1 Средняя температура теплоизоляционного слоя, °С:
B141: - на открытом воздухе в летнее время, в помещении, в каналах, тоннелях, технических подпольях, на чердаках и в подвалах зданий;
B143: - на открытом воздухе, воздухе в зимнее время, где
B144: - температура среды внутри изолируемого оборудования (трубопровода).
B146: 2 Большее значение расчетной теплопроводности теплоизоляционного материала в конструкции для поверхностей с температурой 19 °С и ниже относится к температуре изолируемой поверхности от минус 60 до 19 °С, меньшее - к температуре минус 61 °С и ниже.

Sheet Метод интерполяции
A1: 90 | B1: 1 | D1: 1) | E1: =A3-A1 -> 10
A2: 95 | B2: х | D2: 2) | E2: =A2-A1 -> 5
A3: 100 | B3: 2 | D3: 3) | E3: =E2/E1 -> 0.5
D4: 4) | E4: =(B3-B1)*E3 -> 0.5
D5: 5) х= | E5: =B1+E4 -> 1.5

Sheet Таб.2
A1: Таблица 2 - Нормы плотности теплового потока оборудования и трубопроводов с положительными температурами при расположении на открытом воздухе и числе часов работы более 5000
A3: Условный проход трубопровода, мм | B3: Температура теплоносителя, °С
B5: 20 | C5: 50 | D5: 100 | E5: 150 | F5: 200 | G5: 250 | H5: 300 | I5: 350 | J5: 400 | K5: 450 | L5: 500 | M5: 550 | N5: 600
B8: Плотность теплового потока, Вт/м
A11: 15 | B11: 4 | C11: 9 | D11: 17 | E11: 25 | F11: 35 | G11: 45 | H11: 56 | I11: 68 | J11: 81 | K11: 94 | L11: 109 | M11: 124 | N11: 140
A14: 20 | B14: 4 | C14: 10 | D14: 19 | E14: 28 | F14: 39 | G14: 50 | H14: 62 | I14: 75 | J14: 89 | K14: 103 | L14: 119 | M14: 135 | N14: 152
A17: 25 | B17: 5 | C17: 11 | D17: 20 | E17: 31 | F17: 42 | G17: 54 | H17: 67 | I17: 81 | J17: 95 | K17: 111 | L17: 128 | M17: 145 | N17: 163
A20: 40 | B20: 5 | C20: 12 | D20: 23 | E20: 35 | F20: 47 | G20: 60 | H20: 75 | I20: 90 | J20: 106 | K20: 123 | L20: 142 | M20: 161 | N20: 181
A23: 50 | B23: 6 | C23: 14 | D23: 26 | E23: 38 | F23: 51 | G23: 66 | H23: 81 | I23: 98 | J23: 115 | K23: 133 | L23: 153 | M23: 173 | N23: 195
A26: 65 | B26: 7 | C26: 16 | D26: 29 | E26: 43 | F26: 58 | G26: 74 | H26: 90 | I26: 108 | J26: 127 | K26: 147 | L26: 169 | M26: 191 | N26: 214
A29: 80 | B29: 8 | C29: 17 | D29: 31 | E29: 46 | F29: 62 | G29: 78 | H29: 96 | I29: 115 | J29: 135 | K29: 156 | L29: 179 | M29: 202 | N29: 226
A32: 100 | B32: 9 | C32: 19 | D32: 34 | E32: 50 | F32: 67 | G32: 85 | H32: 104 | I32: 124 | J32: 146 | K32: 168 | L32: 192 | M32: 217 | N32: 243
A35: 125 | B35: 10 | C35: 21 | D35: 38 | E35: 55 | F35: 74 | G35: 93 | H35: 114 | I35: 136 | J35: 159 | K35: 183 | L35: 208 | M35: 235 | N35: 263
A38: 150 | B38: 11 | C38: 23 | D38: 42 | E38: 61 | F38: 80 | G38: 101 | H38: 132 | I38: 156 | J38: 182 | K38: 209 | L38: 238 | M38: 267 | N38: 298
A41: 200 | B41: 14 | C41: 28 | D41: 50 | E41: 72 | F41: 95 | G41: 119 | H41: 154 | I41: 182 | J41: 212 | K41: 242 | L41: 274 | M41: 308 | N41: 343
A44: 250 | B44: 16 | C44: 33 | D44: 57 | E44: 82 | F44: 107 | G44: 133 | H44: 173 | I44: 204 | J44: 236 | K44: 270 | L44: 305 | M44: 342 | N44: 380
A47: 300 | B47: 18 | C47: 37 | D47: 64 | E47: 91 | F47: 118 | G47: 147 | H47: 191 | I47: 224 | J47: 259 | K47: 296 | L47: 333 | M47: 373 | N47: 414
A50: 350 | B50: 22 | C50: 45 | D50: 77 | E50: 108 | F50: 140 | G50: 173 | H50: 208 | I50: 244 | J50: 281 | K50: 320 | L50: 361 | M50: 403 | N50: 446
A53: 400 | B53: 25 | C53: 49 | D53: 84 | E53: 117 | F53: 152 | G53: 187 | H53: 223 | I53: 262 | J53: 301 | K53: 343 | L53: 385 | M53: 430 | N53: 476
A56: 450 | B56: 27 | C56: 54 | D56: 91 | E56: 127 | F56: 163 | G56: 200 | H56: 239 | I56: 280 | J56: 322 | K56: 365 | L56: 410 | M56: 457 | N56: 505
A59: 500 | B59: 30 | C59: 58 | D59: 98 | E59: 136 | F59: 175 | G59: 215 | H59: 256 | I59: 299 | J59: 343 | K59: 389 | L59: 436 | M59: 486 | N59: 537
A62: 600 | B62: 34 | C62: 67 | D62: 112 | E62: 154 | F62: 197 | G62: 241 | H62: 286 | I62: 333 | J62: 382 | K62: 432 | L62: 484 | M62: 537 | N62: 593
A65: 700 | B65: 38 | C65: 75 | D65: 124 | E65: 170 | F65: 217 | G65: 264 | H65: 313 | I65: 364 | J65: 416 | K65: 470 | L65: 526 | M65: 583 | N65: 642
A68: 800 | B68: 43 | C68: 83 | D68: 137 | E68: 188 | F68: 238 | G68: 290 | H68: 343 | I68: 397 | J68: 453 | K68: 511 | L68: 571 | M68: 633 | N68: 696
A71: 900 | B71: 47 | C71: 91 | D71: 150 | E71: 205 | F71: 259 | G71: 315 | H71: 372 | I71: 430 | J71: 490 | K71: 552 | L71: 616 | M71: 681 | N71: 749
A74: 1000 | B74: 52 | C74: 100 | D74: 163 | E74: 222 | F74: 281 | G74: 340 | H74: 400 | I74: 463 | J74: 527 | K74: 592 | L74: 660 | M74: 729 | N74: 801
A77: 1400 | B77: 70 | C77: 133 | D77: 215 | E77: 291 | F77: 364 | G77: 439 | H77: 514 | I77: 591 | J77: 670 | K77: 750 | L77: 833 | M77: 918 | N77: 1098
A80: Более 1400 и плоские поверхности | B80: Плотность теплового потока, Вт/м
B83: 15 | C83: 27 | D83: 41 | E83: 54 | F83: 66 | G83: 77 | H83: 89 | I83: 100 | J83: 110 | K83: 134 | L83: 153 | M83: 174 | N83: 192
A86: Примечание - Промежуточные значения норм плотности теплового потока следует определять интерполяцией.

Sheet Таб.3
A1: Таблица 3 - Нормы плотности теплового потока оборудования и трубопроводов с положительными температурами при расположении на открытом воздухе и числе часов работы 5000 и менее
A3: Условный проход трубопровода, мм | B3: Температура теплоносителя, °С
B5: 20 | C5: 50 | D5: 100 | E5: 150 | F5: 200 | G5: 250 | H5: 300 | I5: 350 | J5: 400 | K5: 450 | L5: 500 | M5: 550 | N5: 600
B8: Плотность теплового потока, Вт/м
A11: 15 | B11: 4 | C11: 10 | D11: 18 | E11: 28 | F11: 38 | G11: 49 | H11: 61 | I11: 74 | J11: 87 | K11: 102 | L11: 117 | M11: 133 | N11: 150
A14: 20 | B14: 5 | C14: 11 | D14: 21 | E14: 31 | F14: 42 | G14: 54 | H14: 67 | I14: 81 | J14: 96 | K14: 112 | L14: 128 | M14: 146 | N14: 164
A17: 25 | B17: 5 | C17: 12 | D17: 23 | E17: 34 | F17: 46 | G17: 59 | H17: 73 | I17: 88 | J17: 104 | K17: 120 | L17: 138 | M17: 157 | N17: 176
A20: 40 | B20: 6 | C20: 14 | D20: 26 | E20: 39 | F20: 52 | G20: 67 | H20: 82 | I20: 99 | J20: 116 | K20: 135 | L20: 154 | M20: 174 | N20: 196
A23: 50 | B23: 7 | C23: 16 | D23: 29 | E23: 43 | F23: 57 | G23: 73 | H23: 90 | I23: 107 | J23: 126 | K23: 146 | L23: 167 | M23: 189 | N23: 212
A26: 65 | B26: 8 | C26: 18 | D26: 33 | E26: 48 | F26: 65 | G26: 82 | H26: 100 | I26: 120 | J26: 141 | K26: 162 | L26: 185 | M26: 209 | N26: 234
A29: 80 | B29: 9 | C29: 20 | D29: 36 | E29: 52 | F29: 69 | G29: 88 | H29: 107 | I29: 128 | J29: 150 | K29: 172 | L29: 197 | M29: 222 | N29: 248
A32: 100 | B32: 10 | C32: 22 | D32: 39 | E32: 57 | F32: 76 | G32: 96 | H32: 116 | I32: 139 | J32: 162 | K32: 187 | L32: 212 | M32: 239 | N32: 267
A35: 125 | B35: 12 | C35: 25 | D35: 44 | E35: 63 | F35: 84 | G35: 113 | H35: 137 | I35: 162 | J35: 189 | K35: 216 | L35: 245 | M35: 276 | N35: 307
A38: 150 | B38: 13 | C38: 27 | D38: 48 | E38: 70 | F38: 92 | G38: 123 | H38: 149 | I38: 176 | J38: 205 | K38: 235 | L38: 266 | M38: 298 | N38: 332
A41: 200 | B41: 16 | C41: 34 | D41: 59 | E41: 83 | F41: 109 | G41: 146 | H41: 176 | I41: 207 | J41: 240 | K41: 274 | L41: 310 | M41: 347 | N41: 385
A44: 250 | B44: 19 | C44: 39 | D44: 67 | E44: 95 | F44: 124 | G44: 166 | H44: 199 | I44: 234 | J44: 270 | K44: 307 | L44: 346 | M44: 387 | N44: 429
A47: 300 | B47: 22 | C47: 44 | D47: 76 | E47: 106 | F47: 138 | G47: 184 | H47: 220 | I47: 258 | J47: 297 | K47: 338 | L47: 380 | M47: 424 | N47: 469
A50: 350 | B50: 27 | C50: 54 | D50: 92 | E50: 128 | F50: 164 | G50: 202 | H50: 241 | I50: 282 | J50: 324 | K50: 368 | L50: 413 | M50: 460 | N50: 508
A53: 400 | B53: 30 | C53: 60 | D53: 100 | E53: 139 | F53: 178 | G53: 219 | H53: 260 | I53: 304 | J53: 349 | K53: 395 | L53: 443 | M53: 493 | N53: 544
A56: 450 | B56: 33 | C56: 65 | D56: 109 | E56: 150 | F56: 192 | G56: 235 | H56: 280 | I56: 326 | J56: 373 | K56: 422 | L56: 473 | M56: 526 | N56: 580
A59: 500 | B59: 36 | C59: 71 | D59: 118 | E59: 162 | F59: 207 | G59: 253 | H59: 300 | I59: 349 | J59: 399 | K59: 451 | L59: 505 | M59: 561 | N59: 618
A62: 600 | B62: 42 | C62: 82 | D62: 135 | E62: 185 | F62: 235 | G62: 285 | H62: 338 | I62: 391 | J62: 447 | K62: 504 | L62: 563 | M62: 624 | N62: 686
A65: 700 | B65: 47 | C65: 91 | D65: 150 | E65: 204 | F65: 259 | G65: 314 | H65: 371 | I65: 429 | J65: 489 | K65: 551 | L65: 614 | M65: 679 | N65: 746
A68: 800 | B68: 53 | C68: 102 | D68: 166 | E68: 226 | F68: 286 | G68: 346 | H68: 407 | I68: 470 | J68: 535 | K68: 602 | L68: 670 | M68: 740 | N68: 812
A71: 900 | B71: 59 | C71: 112 | D71: 183 | E71: 248 | F71: 312 | G71: 377 | H71: 443 | I71: 511 | J71: 581 | K71: 652 | L71: 725 | M71: 800 | N71: 877
A74: 1000 | B74: 64 | C74: 123 | D74: 199 | E74: 269 | F74: 339 | G74: 408 | H74: 479 | I74: 552 | J74: 626 | K74: 702 | L74: 780 | M74: 860 | N74: 941
A77: 1400 | B77: 87 | C77: 165 | D77: 264 | E77: 355 | F77: 444 | G77: 532 | H77: 621 | I77: 712 | J77: 804 | K77: 898 | L77: 995 | M77: 1092 | N77: 1193
A80: Более 1400 и плоские поверхности | B80: Плотность теплового потока, Вт/м
B83: 19 | C83: 35 | D83: 54 | E83: 70 | F83: 85 | G83: 99 | H83: 112 | I83: 125 | J83: 141 | K83: 158 | L83: 174 | M83: 191 | N83: 205
A86: Примечание - Промежуточные значения норм плотности теплового потока следует определять интерполяцией.

Sheet Таб.4
A1: Таблица 4 - Нормы плотности теплового потока для оборудования и трубопроводов с положительными температурами при расположении в помещении и числе часов работы более 5000
A3: Условный проход трубопровода, мм | B3: Температура теплоносителя, °С
B5: 50 | C5: 100 | D5: 150 | E5: 200 | F5: 250 | G5: 300 | H5: 350 | I5: 400 | J5: 450 | K5: 500 | L5: 550 | M5: 600
B8: Плотность теплового потока, Вт/м
A11: 15 | B11: 6 | C11: 14 | D11: 23 | E11: 33 | F11: 43 | G11: 54 | H11: 66 | I11: 79 | J11: 93 | K11: 107 | L11: 122 | M11: 138
A14: 20 | B14: 7 | C14: 16 | D14: 26 | E14: 37 | F14: 48 | G14: 60 | H14: 73 | I14: 87 | J14: 102 | K14: 117 | L14: 134 | M14: 151
A17: 25 | B17: 8 | C17: 18 | D17: 28 | E17: 40 | F17: 52 | G17: 65 | H17: 79 | I17: 94 | J17: 110 | K17: 126 | L17: 144 | M17: 162
A20: 40 | B20: 9 | C20: 21 | D20: 32 | E20: 45 | F20: 59 | G20: 73 | H20: 89 | I20: 105 | J20: 122 | K20: 141 | L20: 160 | M20: 180
A23: 50 | B23: 10 | C23: 23 | D23: 36 | E23: 50 | F23: 64 | G23: 80 | H23: 96 | I23: 114 | J23: 133 | K23: 152 | L23: 173 | M23: 194
A26: 65 | B26: 12 | C26: 26 | D26: 41 | E26: 56 | F26: 72 | G26: 89 | H26: 107 | I26: 127 | J26: 147 | K26: 169 | L26: 191 | M26: 214
A29: 80 | B29: 13 | C29: 28 | D29: 44 | E29: 60 | F29: 77 | G29: 95 | H29: 114 | I29: 135 | J29: 156 | K29: 179 | L29: 202 | M29: 227
A32: 100 | B32: 14 | C32: 31 | D32: 48 | E32: 65 | F32: 84 | G32: 103 | H32: 124 | I32: 146 | J32: 169 | K32: 193 | L32: 218 | M32: 244
A35: 125 | B35: 16 | C35: 35 | D35: 53 | E35: 72 | F35: 92 | G35: 113 | H35: 136 | I35: 159 | J35: 184 | K35: 210 | L35: 237 | M35: 265
A38: 150 | B38: 18 | C38: 38 | D38: 58 | E38: 79 | F38: 100 | G38: 123 | H38: 147 | I38: 172 | J38: 199 | K38: 226 | L38: 255 | M38: 285
A41: 200 | B41: 22 | C41: 46 | D41: 70 | E41: 93 | F41: 118 | G41: 144 | H41: 172 | I41: 200 | J41: 230 | K41: 262 | L41: 294 | M41: 328
A44: 250 | B44: 26 | C44: 53 | D44: 79 | E44: 106 | F44: 134 | G44: 162 | H44: 193 | I44: 224 | J44: 257 | K44: 291 | L44: 327 | M44: 364
A47: 300 | B47: 29 | C47: 60 | D47: 88 | E47: 118 | F47: 148 | G47: 179 | H47: 212 | I47: 246 | J47: 281 | K47: 318 | L47: 357 | M47: 396
A50: 350 | B50: 33 | C50: 66 | D50: 97 | E50: 129 | F50: 161 | G50: 195 | H50: 230 | I50: 267 | J50: 305 | K50: 344 | L50: 385 | M50: 428
A53: 400 | B53: 36 | C53: 72 | D53: 106 | E53: 139 | F53: 174 | G53: 210 | H53: 247 | I53: 286 | J53: 326 | K53: 368 | L53: 411 | M53: 456
A56: 450 | B56: 39 | C56: 78 | D56: 114 | E56: 150 | F56: 187 | G56: 225 | H56: 264 | I56: 305 | J56: 348 | K56: 392 | L56: 437 | M56: 484
A59: 500 | B59: 43 | C59: 84 | D59: 123 | E59: 161 | F59: 200 | G59: 241 | H59: 282 | I59: 326 | J59: 370 | K59: 417 | L59: 465 | M59: 514
A62: 600 | B62: 49 | C62: 96 | D62: 139 | E62: 181 | F62: 225 | G62: 269 | H62: 315 | I62: 363 | J62: 412 | K62: 462 | L62: 515 | M62: 569
A65: 700 | B65: 55 | C65: 107 | D65: 153 | E65: 200 | F65: 247 | G65: 295 | H65: 344 | I65: 395 | J65: 448 | K65: 502 | L65: 558 | M65: 616
A68: 800 | B68: 61 | C68: 118 | D68: 169 | E68: 220 | F68: 270 | G68: 322 | H68: 376 | I68: 431 | J68: 487 | K68: 546 | L68: 606 | M68: 668
A71: 900 | B71: 67 | C71: 130 | D71: 185 | E71: 239 | F71: 294 | G71: 350 | H71: 407 | I71: 466 | J71: 527 | K71: 589 | L71: 653 | M71: 718
A74: 1000 | B74: 74 | C74: 141 | D74: 201 | E74: 259 | F74: 318 | G74: 377 | H74: 438 | I74: 501 | J74: 565 | K74: 631 | L74: 699 | M74: 768
A77: 1400 | B77: 99 | C77: 187 | D77: 263 | E77: 337 | F77: 411 | G77: 485 | H77: 561 | I77: 638 | J77: 716 | K77: 797 | L77: 880 | M77: 964
A80: Более 1400 и плоские поверхности | B80: Плотность теплового потока, Вт/м
B83: 23 | C83: 41 | D83: 56 | E83: 69 | F83: 82 | G83: 94 | H83: 106 | I83: 118 | J83: 130 | K83: 141 | L83: 153 | M83: 165
A86: Примечание - Промежуточные значения норм плотности теплового потока следует определять интерполяцией.

Sheet Таб.5
A1: Таблица 5 - Нормы плотности теплового потока для оборудования и трубопроводов с положительными температурами при расположении в помещении и числе часов работы 5000 и менее
A3: Условный проход трубопровода, мм | B3: Температура теплоносителя, °С
B5: 50 | C5: 100 | D5: 150 | E5: 200 | F5: 250 | G5: 300 | H5: 350 | I5: 400 | J5: 450 | K5: 500 | L5: 550 | M5: 600
B8: Плотность теплового потока, Вт/м
A11: 15 | B11: 6 | C11: 16 | D11: 25 | E11: 35 | F11: 46 | G11: 58 | H11: 71 | I11: 85 | J11: 99 | K11: 114 | L11: 130 | M11: 147
A14: 20 | B14: 7 | C14: 18 | D14: 28 | E14: 40 | F14: 52 | G14: 65 | H14: 79 | I14: 93 | J14: 109 | K14: 126 | L14: 143 | M14: 161
A17: 25 | B17: 8 | C17: 20 | D17: 31 | E17: 43 | F17: 56 | G17: 70 | H17: 85 | I17: 101 | J17: 118 | K17: 136 | L17: 154 | M17: 174
A20: 40 | B20: 10 | C20: 23 | D20: 36 | E20: 49 | F20: 64 | G20: 80 | H20: 96 | I20: 114 | J20: 132 | K20: 152 | L20: 172 | M20: 194
A23: 50 | B23: 11 | C23: 25 | D23: 40 | E23: 54 | F23: 70 | G23: 87 | H23: 105 | I23: 124 | J23: 144 | K23: 165 | L23: 187 | M23: 210
A26: 65 | B26: 13 | C26: 29 | D26: 45 | E26: 62 | F26: 79 | G26: 98 | H26: 118 | I26: 139 | J26: 161 | K26: 184 | L26: 208 | M26: 233
A29: 80 | B29: 14 | C29: 32 | D29: 49 | E29: 66 | F29: 85 | G29: 105 | H29: 126 | I29: 148 | J29: 171 | K29: 195 | L29: 221 | M29: 247
A32: 100 | B32: 16 | C32: 35 | D32: 54 | E32: 73 | F32: 93 | G32: 115 | H32: 137 | I32: 161 | J32: 186 | K32: 212 | L32: 239 | M32: 267
A35: 125 | B35: 18 | C35: 39 | D35: 60 | E35: 81 | F35: 103 | G35: 126 | H35: 151 | I35: 176 | J35: 203 | K35: 231 | L35: 261 | M35: 291
A38: 150 | B38: 21 | C38: 44 | D38: 66 | E38: 89 | F38: 113 | G38: 138 | H38: 164 | I38: 192 | J38: 221 | K38: 251 | L38: 282 | M38: 315
A41: 200 | B41: 26 | C41: 53 | D41: 80 | E41: 107 | F41: 134 | G41: 163 | H41: 194 | I41: 225 | J41: 258 | K41: 292 | L41: 328 | M41: 365
A44: 250 | B44: 30 | C44: 62 | D44: 92 | E44: 122 | F44: 153 | G44: 185 | H44: 218 | I44: 253 | J44: 290 | K44: 327 | L44: 366 | M44: 407
A47: 300 | B47: 34 | C47: 70 | D47: 103 | E47: 136 | F47: 170 | G47: 205 | H47: 241 | I47: 279 | J47: 319 | K47: 359 | L47: 402 | M47: 446
A50: 350 | B50: 38 | C50: 77 | D50: 113 | E50: 149 | F50: 186 | G50: 224 | H50: 263 | I50: 304 | J50: 347 | K50: 391 | L50: 436 | M50: 483
A53: 400 | B53: 42 | C53: 85 | D53: 123 | E53: 162 | F53: 201 | G53: 242 | H53: 284 | I53: 328 | J53: 373 | K53: 419 | L53: 467 | M53: 517
A56: 450 | B56: 46 | C56: 92 | D56: 134 | E56: 175 | F56: 217 | G56: 260 | H56: 305 | I56: 351 | J56: 398 | K56: 448 | L56: 498 | M56: 551
A59: 500 | B59: 51 | C59: 100 | D59: 144 | E59: 189 | F59: 233 | G59: 279 | H59: 327 | I59: 375 | J59: 426 | K59: 478 | L59: 532 | M59: 587
A62: 600 | B62: 58 | C62: 114 | D62: 164 | E62: 214 | F62: 263 | G62: 314 | H62: 367 | I62: 420 | J62: 476 | K62: 533 | L62: 592 | M62: 652
A65: 700 | B65: 65 | C65: 127 | D65: 182 | E65: 236 | F65: 290 | G65: 345 | H65: 402 | I65: 460 | J65: 520 | K65: 582 | L65: 645 | M65: 710
A68: 800 | B68: 73 | C68: 141 | D68: 202 | E68: 261 | F68: 320 | G68: 379 | H68: 441 | I68: 504 | J68: 568 | K68: 635 | L68: 703 | M68: 772
A71: 900 | B71: 81 | C71: 156 | D71: 221 | E71: 285 | F71: 349 | G71: 413 | H71: 479 | I71: 547 | J71: 616 | K71: 687 | L71: 760 | M71: 834
A74: 1000 | B74: 89 | C74: 170 | D74: 241 | E74: 309 | F74: 378 | G74: 447 | H74: 518 | I74: 590 | J74: 663 | K74: 739 | L74: 816 | M74: 896
A77: 1400 | B77: 120 | C77: 226 | D77: 318 | E77: 406 | F77: 492 | G77: 580 | H77: 668 | I77: 758 | J77: 850 | K77: 943 | L77: 1038 | M77: 1136
A80: Более 1400 и плоские поверхности | B80: Плотность теплового потока, Вт/м
B83: 26 | C83: 46 | D83: 63 | E83: 78 | F83: 92 | G83: 105 | H83: 119 | I83: 132 | J83: 145 | K83: 158 | L83: 171 | M83: 190
A86: Примечание - Промежуточные значения норм плотности теплового потока следует определять интерполяцией.
